Cogmind - Beta 14 @@@ ROGUE MODE // 2024.08.25 @ 22:53:12 Player: Dzuchun Result: Destroyed by Y-45 Defender with Heavy Assault Rifle Performance ------------- Evolutions (1) 500 Regions Visited (2) 400 Robots Destroyed (29) 145 Value Destroyed (464) 464 Prototype IDs (0) 0 Alien Tech Used (0) 0 Bonus (0) 0 TOTAL SCORE: 1509 Bonus ------- None Cogmind --------- Core Integrity 0/400 Matter 254/300 Energy 100/100 System Corruption 0% Temperature Cool (9) Movement Core (50) Location -9/Materials Parts ------- > --- POWER (1) -------- (None) > --- PROPULSION (3) --- (None) > --- UTILITY (3) ------ (None) > --- WEAPON (2) ------- (None) > --- INVENTORY (5) ---- High-capacity Storage Unit Large Matter Pod (150) High-capacity Matter Pod (200) Signal Interpreter Peak State ------------ > --- POWER ------------ Ion Engine > --- PROPULSION ------- Light Treads Light Treads > --- UTILITY ---------- High-capacity Storage Unit Seismic Detector > --- WEAPON ----------- Medium Laser Medium Laser > --- INVENTORY -------- Ion Engine High-capacity Storage Unit High-capacity Storage Unit Large Matter Pod High-capacity Matter Pod Sensor Array Signal Interpreter ECM Suite ECM Suite Grenade Launcher [Rating: 8] Favorites ----------- Power Ion Engine Engine Ion Engine Propulsion Light Treads Treads Light Treads Flight Unit Flight Unit Utility High-capacity Storage Unit Device Seismic Detector Storage High-capacity Storage Unit Weapon Medium Laser Energy Gun Medium Laser Energy Cannon Beam Cannon Ballistic Cannon Light Cannon Launcher Grenade Launcher Build | -11 -10 -9 ------- Run | Yrd Mat Mat Slots Evolved 2 | . . 2 Power . | . . . Propulsion 1 | . . 1 Utility 1 | . . 1 Weapon . | . . . Parts Attached 22 | 7 5 10 Power 3 | 1 . 2 Engine 3 | 1 . 2 Core . | . . . Reactor . | . . . Propulsion 4 | 2 . 2 Treads 2 | 2 . . Leg . | . . . Wheel . | . . . Hover . | . . . Flight 2 | . . 2 Utility 6 | 2 2 2 Device 3 | 1 . 2 Storage 3 | 1 2 . Processor . | . . . Hackware . | . . . Protection . | . . . Artifact . | . . . Weapon 9 | 2 3 4 Energy Gun 2 | 2 . . Energy Cannon 3 | . 2 1 Ballistic Gun . | . . . Ballistic Cannon 3 | . 1 2 Launcher 1 | . . 1 Special Weapon . | . . . Impact Weapon . | . . . Slashing Weapon . | . . . Piercing Weapon . | . . . Special Melee Weapon . | . . . Unidentified Prototypes . | . . . Parts Lost 15 | . 4 11 Power 3 | . 1 2 Propulsion 4 | . 2 2 Utility 2 | . 1 1 Weapon 6 | . . 6 Highest Loss Streak 9 | . 4 9 To Critical Strikes . | . . . Average Slot Usage (%) 70 | . 72 61 Engine 7 | . 7 10 Treads 12 | . 14 . Device 9 | . 7 19 Storage 13 | . 14 11 Energy Gun 9 | . 11 . Energy Cannon 11 | . 11 14 Ballistic Cannon 5 | . 5 4 Peak Build Rating 8 | 7 8 8 Average Rating 6 | 5 5 7 On Entrance 4 | . 7 5 Naked Turns 2 | . . 2 Heaviest Build 56 | 15 52 56 Greatest Support 40 | 40 40 4 Greatest Overweight (x) 18 | . 15 18 Average Overweight (x) 4 | . 3 17 Largest Inventory Capacity 20 | 8 20 20 Average Capacity 18 | 7 18 19 Most Carried 13 | 1 13 11 Average Carried 9 | . 10 7 Final Capacity 20 | 8 20 5 Final Carried 12 | 1 12 4 Class Distribution -------------------- 100% | Mutant Dominant Class ---------------- Mutant | -10/Materials Mutant | -9/Materials Resources | -11 -10 -9 ----------- Run | Yrd Mat Mat Matter Collected 804 | 248 486 70 Remotely . | . . . Salvage Created 847 | 118 609 120 Parts 50 | 6 32 12 Haulers Intercepted 2 | . 2 . Recyclers Shooed . | . . . Parts Field Recycled . | . . . Retrieved Matter . | . . . Parts Self-Destructed . | . . . Prevented . | . . . Kills | -11 -10 -9 ------- Run | Yrd Mat Mat Combat Hostiles Destroyed 14 | . 10 4 Guns 4 | . 4 . Cannons 8 | . 4 4 Classes Destroyed 9 | 2 6 1 Worker 4 | . 4 . Builder 2 | . 1 1 Tunneler 2 | 2 . . Hauler 2 | . 2 . Recycler 2 | 1 1 . Mechanic 1 | . . 1 Watcher 2 | . 2 . Swarmer 6 | . 3 3 Grunt 8 | . 7 1 Best Kill Streak 6 | 3 6 4 Combat Bots Only 3 | . 3 2 Max Kills in Single Turn 3 | 1 3 1 Gunslinging . | . . . Exploded . | . . . Melee . | . . . Uniques/NPCs Destroyed . | . . . Combat | -11 -10 -9 -------- Run | Yrd Mat Mat Hostile Shots Fired 220 | . 72 148 Missed 48 | . 15 33 Damage Taken 2047 | . 670 1377 Core 506 | . 100 406 Absorbed by Shields . | . . . Core Remaining (%) 80 | 100 60 . Volleys Fired 72 | 5 52 15 Largest 2 | 2 2 2 Hottest 116 | 100 100 116 Shots Fired 140 | 10 104 26 Gun 84 | 10 74 . Cannon 55 | . 30 25 Launcher 1 | . . 1 Special . | . . . Kinetic 27 | . 15 12 Thermal 101 | 10 89 2 Explosive 1 | . . 1 Electromagnetic 11 | . . 11 Robot Hit Streak 9 | 4 9 6 Robot Miss Streak 8 | 1 8 3 Penetration Max . | . . . Secondary Targets 1 | . 1 . Max Gunslinging Chain 1 | . 1 . Shots Hit Robots 77 | 7 56 14 Core Hits 34 | 4 24 6 Critical Kills . | . . . Critical Parts Destroyed . | . . . Critical Strikes 9 | 1 6 2 Burn 6 | 1 5 . Blast 2 | . 1 1 Corrupt 1 | . . 1 Melee Attacks . | . . . Impact . | . . . Slashing . | . . . Piercing . | . . . Sneak Attacks . | . . . Combat Hostiles . | . . . Follow-up Attacks . | . . . Damage Inflicted 1523 | 86 1096 341 Guns 580 | 86 494 . Cannons 588 | . 275 313 Explosions 335 | . 311 24 Melee . | . . . Ramming 20 | . 16 4 Kinetic 301 | . 135 166 Thermal 1091 | 86 945 60 Explosive . | . . . Electromagnetic 111 | . . 111 Impact . | . . . Slashing . | . . . Piercing . | . . . Highest Corruption . | . . . Average Corruption . | . . . Corruption Purged . | . . . Corruption Blocked . | . . . Overload Shots . | . . . Overflow Damage 148 | . 125 23 Projectiles 2 | . . 2 Explosions 146 | . 125 21 Melee . | . . . Knockbacks 4 | . 2 2 Impact 1 | . 1 . Kinetic 3 | . 1 2 Secondary . | . . . Self-Inflicted Damage 124 | . 96 28 Shots 2 | . 1 1 Rammed 4 | . 2 2 Targets Rammed 4 | . 2 2 Kicked . | . . . Crushed . | . . . Highest Temperature 351 | 195 351 96 Average Temperature 88 | 99 100 26 Received Heat Transfer 597 | . 219 378 Effects 3 | . 3 . Energy Bleed 2 | . 2 . Matter Decay 1 | . 1 . Siege Activations . | . . . Robots Corrupted . | . . . Combat Hostiles . | . . . Parts Fried . | . . . Impact Corruptions . | . . . Robots Melted 2 | . 2 . Combat Hostiles 2 | . 2 . Parts Melted 10 | 2 7 1 Heat Transferred 2853 | 333 2396 124 Parts Sabotaged . | . . . Parts Stolen . | . . . Parts Stripped . | . . . Power Chain Reactions 1 | . . 1 Alert | -11 -10 -9 ------- Run | Yrd Mat Mat Peak Influence 181 | 15 181 53 Initial 9 | . 9 . Average 43 | 5 49 21 Maximum Alert Level . | . . . Low Security (%) 100 | 100 100 100 Level 1 . | . . . Level 2 . | . . . Level 3 . | . . . Level 4 . | . . . Level 5 . | . . . High Security . | . . . Max Security . | . . . Squads Dispatched 3 | . 3 . Investigation 2 | . 2 . Extermination . | . . . Reinforcement 1 | . 1 . Assault . | . . . Garrison . | . . . Intercept . | . . . Searches Triggered . | . . . Construction Impeded . | . . . Haulers Reinforced . | . . . Active Scanning Responses . | . . . Cargo Convoy Interrupts . | . . . Stealth | -11 -10 -9 --------- Run | Yrd Mat Mat Distress Signals 2 | . 2 . Communications Jammed . | . . . Distress Signals . | . . . Times Spotted 32 | . 21 11 Peak Tracking Total 6 | . 4 6 Tactical Retreats 2 | . . 2 Traps | -11 -10 -9 ------- Run | Yrd Mat Mat Traps Triggered 1 | . 1 . Indirectly . | . . . Trap Hack Attempts . | . . . Triggered . | . . . Disarmed . | . . . Reprogrammed . | . . . Reused . | . . . Traps Extracted . | . . . Installed . | . . . Triggered . | . . . Machines | -11 -10 -9 ---------- Run | Yrd Mat Mat Machines Disabled 3 | . 2 1 Max in Single Turn 2 | . 2 1 Machines Repaired . | . . . Machines Dismantled . | . . . Machines Sabotaged . | . . . Overloaded Fab Kills . | . . . Hacking | -11 -10 -9 --------- Run | Yrd Mat Mat Machines Accessed 5 | . 4 1 Terminals 5 | . 4 1 Fabricators . | . . . Repair Stations . | . . . Recycling Units . | . . . Scanalyzers . | . . . Garrison Access . | . . . Total Hacks 10 | . 8 2 Successful 8 | . 6 2 Failed 2 | . 2 . Catastrophic . | . . . Database Lockouts . | . . . Manual 10 | . 9 1 Terminals 10 | . 8 2 Fabricators . | . . . Repair Stations . | . . . Recycling Units . | . . . Scanalyzers . | . . . Garrison Access . | . . . Terminal Hacks 3 | . 2 1 Locate Traps 2 | . 2 . Hauler Manifests 1 | . . 1 Fabricator Hacks . | . . . Repair Station Hacks . | . . . Recycling Unit Hacks . | . . . Scanalyzer . | . . . Garrison Access Hacks . | . . . Unauthorized Hacks 5 | . 4 1 Terminals 5 | . 4 1 Botnet 5 | . 4 1 Fabricators . | . . . Repair Stations . | . . . Recycling Units . | . . . Scanalyzers . | . . . Garrison Access . | . . . Data Cores Recovered . | . . . Used . | . . . Hacking Detections 3 | . 2 1 Full Trace Events 1 | . 1 . Feedback Events . | . . . Feedback Blocked . | . . . Robot Schematics Acquired . | . . . Robots Built . | . . . Authchips . | . . . Time . | . . . Total Robot Build Rating . | . . . Part Schematics Acquired . | . . . Parts Built . | . . . Authchips . | . . . Time . | . . . Total Part Build Rating . | . . . Parts Repaired . | . . . Time . | . . . Parts Recycled . | . . . Recycled Matter . | . . . Retrieved Matter . | . . . Retrieved Components . | . . . Parts Scanalyzed . | . . . Part Schematics Acquired . | . . . Parts Damaged . | . . . Bothacking | -11 -10 -9 ------------ Run | Yrd Mat Mat Used RIF Installer . | . . . Robots Hacked . | . . . Non-combat . | . . . Combat . | . . . Robot Hacks Applied . | . . . Relay Couplers Released . | . . . Fabnet Peak Effective % . | . . . Robots Rewired . | . . . Allies Hacked . | . . . Hacks Repelled . | . . . Allies | -11 -10 -9 -------- Run | Yrd Mat Mat Total Allies . | . . . Largest Group . | . . . Highest-Rated Group . | . . . Highest-Rated Ally . | . . . Total Orders . | . . . Ally Attacks . | . . . Total Damage . | . . . Kills . | . . . Allies Corrupted . | . . . Allies Melted . | . . . Intel | -11 -10 -9 ------- Run | Yrd Mat Mat Robot Analysis Total . | . . . Derelict Logs Recovered . | . . . Drone Launches . | . . . Drone Recoveries . | . . . Exploration | -11 -10 -9 ------------- Run | Yrd Mat Mat Turns Passed 2841 | 116 2242 483 Spaces Moved 683 | 59 579 45 Core 179 | 6 130 43 Treads 502 | 53 449 . Legs . | . . . Wheels . | . . . Hover . | . . . Flight 2 | . . 2 Fastest Speed 50 | 50 160 50 Average Speed 373 | 148 353 927 Slowest Speed 1000 | 160 800 1000 Overloaded Moves . | . . . Propulsion Burnouts . | . . . Robots Hopped . | . . . Cave-ins Triggered . | . . . Exploration Rate (%) 30 | 5 80 7 Regions Visited 2 Branch Regions . Pre-discovered Areas . | . . . Known Exits Taken . | . . . Unknown Exits Taken 2 | 1 1 . Scrap Searched . | . . . Spaces Dug . | . . . Terrain Destroyed 35 | . 26 9 Melee . | . . . Projectile . | . . . AOE 35 | . 26 9 Terrain Rammed . | . . . Walls Destroyed . | . . . Machines Disabled . | . . . Actions | -11 -10 -9 --------- Run | Yrd Mat Mat Total 828 | 74 670 84 Wait 28 | 3 13 12 Move 681 | 58 578 45 Hop . | . . . Pick Up 18 | 1 17 . Fast Attach 10 | 7 1 2 Attach 9 | . 1 8 Detach . | . . . Swap 3 | . 3 . Drop 3 | . 3 . Fire 72 | 5 52 15 Melee . | . . . Ram 3 | . 1 2 Kick . | . . . Crush 1 | . 1 . Escape Stasis . | . . . Rewire . | . . . Trap . | . . . Miscellaneous . | . . . Route ------- -11/Scrapyard -10/Materials (discovered 3 exits: *Mat x2 / [*Min]) -9/Materials History --------- Turn | Location | Event 4 | -11/Scrapyard | Discovered new exit (range 15) 117 | -11/Scrapyard | Entered Materials 308 | -10/Materials | Build established: Mutant 488 | -10/Materials | Discovered new exit (range 14) 646 | -10/Materials | Discovered new exit (range 5) 1328 | -10/Materials | Lost 4 parts (1p2n1u) 2063 | -10/Materials | Discovered new exit (range 15) 2359 | -10/Materials | Entered another Materials area 2359 | -9/Materials | Evolved 2 slots: Propulsion x1, Utility x1 2803 | -9/Materials | Core integrity fell below 50% 2840 | -9/Materials | Core integrity fell below 20% 2840 | -9/Materials | Released all parts (2) 2842 | -9/Materials | Destroyed by Y-45 Defender with Heavy Assault Rifle Last Messages --------------- 02791_ Terminal disabled. 02804_ The unstable cave ceiling collapses. 02805_ Grenade Launcher destroyed. 02812_ The unstable cave ceiling collapses. 02816_ Acquired Flight Unit. 02822_ K-01 Serf cleans the Nuclear Reactor. 02827_ Acquired Flight Unit. 02829_ Imp. Light Cannon destroyed. 02830_ Flight Unit destroyed. 02834_ R-06 Scavenger collects Lgt. Assault Rifle. 02837_ Ion Engine destroyed. 02838_ R-06 Scavenger collects Lgt. Assault Rifle. 02839_ K-01 Serf collects debris. 02840_ Critical hit (Burn: +37). 02840_ Released Hcp. Storage Unit. 02840_ Released ECM Suite. 02841_ Slammed into Y-45 Defender. 02841_ R-06 Scavenger collects Hcp. Storage Unit. 02842_ Slammed into Y-45 Defender. 02842_ K-01 Serf collects debris. Map ----- +----------------------------------------------------+ | | | | | | | | | | | | | | | | | | | | | | | ?????????###########?????????????????????????????? | | ?????????# "T" #?????????????????????????????? | | ?????????# #?????????????????????????????? | | ?????????# #?????????????????????????????? | | ?????????# #?????????????????????????????? | | ???###########+#####?????????????????????????????? | | ???# #??????????????????????????????? | | ???# #??????????????????????????????? | | ???# * #??????????????????????????????? | | ???############%% #??????????????????????????????? | | ????????????### #???##+########### ??????????? | | ??????????????#% ##### ??????????? | | ??????????????# ??????????? | | ??????????????# #####YrY % ??????????? | | ??????????????# #???# @#########??????????????? | | ??????????????#% #??##r ##?????????????????????? | | ??????????????# #??# ! #?????????????????????? | | ??????????????# #??# % % #?????????????????????? | | ??????????????# #??# ????????????????????? | | ??????????????# #??# # ??????????????????? | | ??????????????# #??# k ????????????????? | | ??????????????# #??# # " " ??????????????? | | ??????????????# #??# # "R" #?????????????? | | ?????????????? #??## ## """ #?????????????? | | ?????????????? #???# #?#######??????????????? | | ?????????????? #???# #??????????????????????? | | ??????????????# #??? ^ ??????????????????????? | | ??????????????# #??? ??????????????????????? | | ??????????????? #??? """??????????????????????? | | ??????????????? #??? """??????????????????????? | | ??????????????? ???? ?????????????????????????? | | ?????????????????????? ?????????????????????????? | | ?????????????????????????????????????????????????? | | ?????????????????????????????????????????????????? | | ?????????????????????????????????????????????????? | | ?????????????????????????????????????????????????? | | ?????????????????????????????????????????????????? | | ?????????????????????????????????????????????????? | | ?????????????????????????????????????????????????? | +----------------------------------------------------+ Best States ------------- Heat Dissipation 28 Energy Generation 10 Energy Capacity 250 Matter Stores 300 Matter Capacity 300 Sight Range 16 Robot Scan Range 14 Terrain Scan Density 10 ECM Strength 1 Evasion (%) 40 Recoil Reduction 2 Item Schematics ----------------- None Robot Schematics ------------------ None Fabricated ------------ Nothing Alien Tech Used ----------------- None Achievements -------------- None Challenges ------------ None Game ------ Seed ThrusterSapperWeb Manual? 0 Play Time 00:16:26 Cumulative 15.2 hours Start 2024.08.25 @ 22:38:40 End 2024.08.25 @ 22:53:12 Sessions 1 Manual Loads 0 Difficulty Rogue Special Mode None Game No. 24 Rogue 24 Adventurer 0 Explorer 0 Win Type - Total 0 Types 0/0/0/0/0/0/0/0/0 Lore% 7 Gallery% 15 Achievement% 16 Wizard Run 0 Options --------- Layout 0 ASCII 0 Keyboard 1 Movement Vi Keybinds 0 Fullscreen 1 Font 18/X11Bold Map View 76x50 Zoom Use 0% Tactical HUD 1 Map Filters NONE Filters NONE Steam 1 RUN: d65c57e0-34ca-4149-88bc-59207acffafe